fUST/lending_fUST_20250206
["ID","MTS","AMOUNT","RATE_DAILY","PERIOD"]
[351804826,1738793440164,-500.0,0.00013698,2]
[351804828,1738793440173,-519.75081571,0.00013698,2]
[351804830,1738793440185,-280.47749272,0.00013698,2]
[351804832,1738793440196,-500.0,0.00013698,2]
[351804834,1738793440205,-500.0,0.00013698,2]
[351804836,1738793440215,-500.0,0.00013698,2]
[351804838,1738793440224,-500.0,0.00013698,2]
[351804840,1738793440233,-500.0,0.00013698,2]
[351804842,1738793440242,-500.0,0.00013698,2]
[351804844,1738793440252,-500.0,0.00013698,2]
[351804846,1738793440262,-500.0,0.00013698,2]
[351804848,1738793440271,-500.0,0.00013698,2]
[351804850,1738793440281,-705.06,0.00013698,2]
[351804852,1738793440291,-500.0,0.00013698,2]
[351804854,1738793440300,-529.69,0.00013698,2]
[351804856,1738793440309,-500.0,0.00013698,2]
[351804858,1738793440319,-500.0,0.00013698,2]
[351804861,1738793440329,-723.91,0.00013698,2]
[351804863,1738793440339,-500.0,0.00013698,2]
[351804864,1738793440348,-500.0,0.00013698,2]
[351804866,1738793440358,-676.59,0.00013698,2]
[351804869,1738793440368,-500.0,0.00013698,2]
[351804871,1738793440377,-500.0,0.00013698,2]
[351804873,1738793440387,-539.92,0.00013698,2]
[351804875,1738793440397,-501.01857516,0.00013698,2]
[351804877,1738793440409,-507.35096873,0.00013698,2]
[351804879,1738793440419,-500.0,0.00013698,2]
[351804881,1738793440428,-500.0,0.00013698,2]
[351804883,1738793440439,-500.0,0.00013698,2]
[351804885,1738793440448,-1320.52,0.00013698,2]
[351804887,1738793440458,-500.0,0.00013698,2]
[351804889,1738793440467,-500.0,0.00013698,2]
[351804891,1738793440476,-797.96,0.00013698,2]
[351804893,1738793440489,-500.0,0.00013698,2]
[351804895,1738793440498,-500.0,0.00013698,2]
[351804897,1738793440507,-500.0,0.00013698,2]
[351804899,1738793440517,-500.0,0.00013698,2]
[351804901,1738793440526,-500.0,0.00013698,2]
[351804903,1738793440535,-586.94,0.00013698,2]
[351804905,1738793440544,-500.0,0.00013698,2]
[351804907,1738793440554,-1630.4,0.00013698,2]
[351804909,1738793440564,-500.0,0.00013698,2]
[351804911,1738793440574,-500.0,0.00013698,2]
[351804913,1738793440583,-500.0,0.00013698,2]
[351804915,1738793440592,-609.14,0.00013698,2]
[351804917,1738793440602,-500.0,0.00013698,2]
[351804919,1738793440611,-500.0,0.00013698,2]
[351804921,1738793440620,-500.0,0.00013698,2]
[351804923,1738793440630,-500.0,0.00013698,2]
[351804925,1738793440639,-646.9331883,0.00013698,2]
[351804927,1738793440648,-501.44546254,0.00013698,2]
[351804929,1738793440659,-500.0,0.00013698,2]
[351804931,1738793440668,-500.0,0.00013698,2]
[351804933,1738793440678,-2402.34,0.00013698,2]
[351804935,1738793440689,-500.0,0.00013698,2]
[351804937,1738793440698,-500.0,0.00013698,2]
[351804939,1738793440707,-500.0,0.00013698,2]
[351804941,1738793440717,-540.51566658,0.00013698,2]
[351804943,1738793440727,-1028.16,0.00013698,2]
[351804945,1738793440736,-500.0,0.00013698,2]
[351804947,1738793440747,-500.0,0.00013698,2]
[351804949,1738793440755,-500.0,0.00013698,2]
[351804951,1738793440764,-503.09197997,0.00013698,2]
[351804953,1738793440774,-866.24,0.00013698,2]
[351804955,1738793440783,-500.0,0.00013698,2]
[351804957,1738793440795,-500.0,0.00013698,2]
[351804959,1738793440804,-1702.78,0.00013698,2]
[351804961,1738793440813,-500.0,0.00013698,2]
[351804963,1738793440823,-781.06,0.00013698,2]
[351804965,1738793440832,-500.0,0.00013698,2]
[351804967,1738793440841,-500.0,0.00013698,2]
[351804969,1738793440851,-500.0,0.00013698,2]
[351804971,1738793440860,-500.0,0.00013698,2]
[351804973,1738793440869,-500.0,0.00013698,2]
[351804975,1738793440879,-500.0,0.00013698,2]
[351804977,1738793440888,-501.61614363,0.00013698,2]
[351804979,1738793440898,-588.07,0.00013698,2]
[351804981,1738793440908,-500.0,0.00013698,2]
[351804983,1738793440920,-508.67940819,0.00013698,2]
[351804985,1738793440929,-500.0,0.00013698,2]
[351804987,1738793440939,-500.0,0.00013698,2]
[351804989,1738793440948,-500.0,0.00013698,2]
[351804991,1738793440957,-500.0,0.00013698,2]
[351804993,1738793440966,-500.0,0.00013698,2]
[351804995,1738793440975,-500.0,0.00013698,2]
[351804997,1738793440984,-500.0,0.00013698,2]
[351804999,1738793440993,-500.0,0.00013698,2]
[351805001,1738793441003,-340.59831337,0.00013698,2]
[351805003,1738793441013,-500.0,0.00013698,2]
[351805005,1738793441022,-500.82785727,0.00013698,2]
[351805007,1738793441032,-500.0,0.00013698,2]
[351805009,1738793441042,-500.0,0.00013698,2]
[351805011,1738793441051,-500.0,0.00013698,2]
[351805013,1738793441060,-500.0,0.00013698,2]
[351805015,1738793441070,-826.2,0.00013698,2]
[351805017,1738793441080,-1000.0,0.00013698,2]
[351805019,1738793441088,-502.56277619,0.00013698,2]
[351805021,1738793441098,-505.3879968,0.00013698,2]
[351805023,1738793441108,-500.0,0.00013698,2]
[351805025,1738793441118,-500.0,0.00013698,2]
[351805027,1738793441127,-500.0,0.00013698,2]
[351805029,1738793441137,-500.0,0.00013698,2]
[351805031,1738793441146,-205.85701015,0.00013698,2]
[351805033,1738793441156,-557.1,0.00013698,2]
[351805035,1738793441165,-500.0,0.00013698,2]
[351805037,1738793441174,-500.0,0.00013698,2]
[351805039,1738793441185,-621.53381031,0.00013698,2]
[351805041,1738793441195,-500.0,0.00013698,2]
[351805043,1738793441205,-500.0,0.00013698,2]
[351805045,1738793441214,-514.05859122,0.00013698,2]
[351805047,1738793441224,-500.0,0.00013698,2]
[351805049,1738793441233,-500.0,0.00013698,2]
[351805051,1738793441243,-2243.52,0.00013698,2]
[351805053,1738793441252,-1930.14,0.00013698,2]
[351805055,1738793441261,-500.0,0.00013698,2]
[351805057,1738793441270,-910.82,0.00013698,2]
[351805059,1738793441279,-500.0,0.00013698,2]
[351805061,1738793441289,-501.03594351,0.00013698,2]
[351805063,1738793441299,-501.89713093,0.00013698,2]
[351805065,1738793441309,-500.0,0.00013698,2]
[351805067,1738793441319,-696.92,0.00013698,2]
[351805069,1738793441329,-500.0,0.00013698,2]
[351805071,1738793441339,-500.0,0.00013698,2]
[351805073,1738793441348,-500.0,0.00013698,2]
[351805075,1738793441358,-500.0,0.00013698,2]
[351805077,1738793441368,-500.0,0.00013698,2]
[351805078,1738793441377,-500.0,0.00013698,2]
[351805080,1738793441386,-362.32917678,0.00013698,2]
[351805081,1738793441396,-630.22471093,0.00013698,2]
[351805082,1738793441407,-500.0,0.00013698,2]
[351805084,1738793441419,-501.43181631,0.00013698,2]
[351805086,1738793441429,-634.05,0.00013698,2]
[351805087,1738793441441,-500.0,0.00013698,2]
[351805089,1738793441451,-500.0,0.00013698,2]
[351805091,1738793441462,-500.0,0.00013698,2]
[351805092,1738793441472,-500.0,0.00013698,2]
[351805093,1738793441482,-500.0,0.00013698,2]
[351805094,1738793441492,-500.3237558,0.00013698,2]
[351805095,1738793441502,-500.0,0.00013698,2]
[351805096,1738793441512,-724.54,0.00013698,2]
[351805097,1738793441521,-1527.29,0.00013698,2]
[351805098,1738793441531,-500.0,0.00013698,2]
[351805099,1738793441541,-500.62237542,0.00013698,2]
[351805100,1738793441551,-500.0,0.00013698,2]
[351805101,1738793441560,-546.7,0.00013698,2]
[351805102,1738793441570,-1456.31,0.00013698,2]
[351805103,1738793441579,-500.0,0.00013698,2]
[351805104,1738793441589,-500.0,0.00013698,2]
[351805105,1738793441599,-500.671236,0.00013698,2]
[351805106,1738793441609,-500.0,0.00013698,2]
[351805107,1738793441619,-500.0,0.00013698,2]
[351805108,1738793441628,-500.0,0.00013698,2]
[351805110,1738793441638,-500.0,0.00013698,2]
[351805111,1738793441648,-1105.23,0.00013698,2]
[351805113,1738793441658,-500.0,0.00013698,2]
[351805114,1738793441668,-187.29223806,0.00013698,2]
[351805115,1738793441678,-500.0,0.00013698,2]
[351805116,1738793441691,-501.22673616,0.00013698,2]
[351805117,1738793441702,-500.0,0.00013698,2]
[351805118,1738793441712,-1293.51,0.00013698,2]
[351805119,1738793441722,-500.0,0.00013698,2]
[351805120,1738793441732,-500.0,0.00013698,2]
[351805121,1738793441742,-500.0,0.00013698,2]
[351805122,1738793441751,-500.22088784,0.00013698,2]
[351805123,1738793441761,-500.0,0.00013698,2]
[351805124,1738793441771,-500.0,0.00013698,2]
[351805125,1738793441781,-905.95,0.00013698,2]
[351805126,1738793441792,-502.66,0.00013698,2]
[351805127,1738793441802,-500.0,0.00013698,2]
[351805128,1738793441812,-500.0,0.00013698,2]
[351805129,1738793441822,-500.0,0.00013698,2]
[351805130,1738793441833,-586.97,0.00013698,2]
[351805131,1738793441843,-500.0,0.00013698,2]
[351805132,1738793441853,-204.22266802,0.00013698,2]
[351805133,1738793441863,-500.0,0.00013698,2]
[351805134,1738793441873,-312.29790924,0.00013698,2]
[351805135,1738793441883,-500.0,0.00013698,2]
[351805136,1738793441892,-500.0,0.00013698,2]
[351805137,1738793441901,-500.0,0.00013698,2]
[351805138,1738793441912,-500.0,0.00013698,2]
[351805139,1738793441922,-405.8795387,0.00013698,2]
[351805140,1738793441934,-500.0,0.00013698,2]
[351805141,1738793441944,-660.63,0.00013698,2]
[351805142,1738793441954,-660.63,0.00013698,2]
[351805143,1738793441963,-660.63,0.00013698,2]
[351805144,1738793441973,-1730.6,0.00013698,2]
[351805145,1738793441983,-660.63,0.00013698,2]
[351805146,1738793441993,-660.63,0.00013698,2]
[351805147,1738793442002,-500.0,0.00013698,2]
[351805148,1738793442012,-660.63,0.00013698,2]
[351805149,1738793442021,-508.21544375,0.00013698,2]
[351805150,1738793442031,-660.63,0.00013698,2]
[351805151,1738793442041,-660.63,0.00013698,2]
[351805152,1738793442051,-660.63,0.00013698,2]
[351805153,1738793442061,-500.0,0.00013698,2]
[351805154,1738793442071,-500.0,0.00013698,2]
[351805155,1738793442081,-660.63,0.00013698,2]
[351805156,1738793442091,-660.63,0.00013698,2]
[351805157,1738793442101,-660.63,0.00013698,2]
[351805158,1738793442111,-660.63,0.00013698,2]
[351805159,1738793442121,-1219.45,0.00013698,2]
[351805160,1738793442131,-660.63,0.00013698,2]
[351805161,1738793442140,-500.0,0.00013698,2]
[351805162,1738793442150,-660.63,0.00013698,2]
[351805163,1738793442160,-660.63,0.00013698,2]
[351805164,1738793442169,-500.0,0.00013698,2]
[351805165,1738793442179,-660.63,0.00013698,2]
[351805166,1738793442191,-660.63,0.00013698,2]
[351805167,1738793442200,-660.63,0.00013698,2]
[351805168,1738793442209,-660.63,0.00013698,2]
[351805169,1738793442219,-660.63,0.00013698,2]
[351805170,1738793442229,-660.63,0.00013698,2]
[351805171,1738793442239,-660.63,0.00013698,2]
[351805172,1738793442248,-500.0,0.00013698,2]
[351805173,1738793442258,-660.70626421,0.00013698,2]
[351805174,1738793442267,-500.0,0.00013698,2]
[351805175,1738793442276,-500.90461884,0.00013698,2]
[351805176,1738793442286,-500.0,0.00013698,2]
[351805177,1738793442297,-500.0,0.00013698,2]
[351805178,1738793442310,-2376.43,0.00013698,2]
[351805179,1738793442320,-1446.14,0.00013698,2]
[351805180,1738793442330,-500.0,0.00013698,2]
[351805181,1738793442340,-500.0,0.00013698,2]
[351805182,1738793442350,-500.0,0.00013698,2]
[351805183,1738793442360,-500.0,0.00013698,2]
[351805184,1738793442370,-500.0,0.00013698,2]
[351805185,1738793442380,-500.0,0.00013698,2]
[351805186,1738793442390,-500.0,0.00013698,2]
[351805187,1738793442399,-500.0,0.00013698,2]
[351805188,1738793442410,-500.0,0.00013698,2]
[351805189,1738793442422,-503.76300442,0.00013698,2]
[351805190,1738793442432,-863.94,0.00013698,2]
[351805191,1738793442441,-500.0,0.00013698,2]
[351805192,1738793442451,-500.0,0.00013698,2]
[351805193,1738793442461,-731.71,0.00013698,2]
[351805194,1738793442471,-500.0,0.00013698,2]
[351805195,1738793442481,-500.0,0.00013698,2]
[351805196,1738793442491,-500.0,0.00013698,2]
[351805199,1738793442509,-500.0,0.00013698,2]
[351805201,1738793442522,-500.0,0.00013698,2]
[351805203,1738793442532,-500.0,0.00013698,2]
[351805205,1738793442543,-500.0,0.00013698,2]
[351805207,1738793442554,-500.0,0.00013698,2]
[351805208,1738793442565,-500.0,0.00013698,2]
[351805209,1738793442576,-500.0,0.00013698,2]
[351805210,1738793442588,-3678.19,0.00013698,2]
[351805211,1738793442598,-500.0,0.00013698,2]
[351805213,1738793442610,-500.0,0.00013698,2]
[351805215,1738793442620,-500.0,0.00013698,2]
[351805216,1738793442631,-500.0,0.00013698,2]
[351805217,1738793442642,-500.0,0.00013698,2]
[351805218,1738793442652,-1017.82,0.00013698,2]
[351805220,1738793442663,-500.0,0.00013698,2]
[351805224,1738793442673,-1834.97,0.00013698,2]
[351805228,1738793442685,-1233.92,0.00013698,2]
[351805230,1738793442695,-500.0,0.00013698,2]
[351805233,1738793442705,-1266.14,0.00013698,2]
[351805235,1738793442715,-500.0,0.00013698,2]
[351805238,1738793442726,-500.0,0.00013698,2]
[351805240,1738793442736,-500.0,0.00013698,2]
[351805242,1738793442746,-500.0,0.00013698,2]
[351805244,1738793442757,-500.0,0.00013698,2]
[351805246,1738793442767,-500.0,0.00013698,2]
[351805248,1738793442777,-3780.25,0.00013698,2]
[351805249,1738793442787,-500.0,0.00013698,2]
[351805250,1738793442799,-500.0,0.00013698,2]
[351805251,1738793442810,-500.0,0.00013698,2]
[351805252,1738793442821,-500.0,0.00013698,2]
[351805253,1738793442831,-500.0,0.00013698,2]
[351805254,1738793442842,-681.08,0.00013698,2]
[351805255,1738793442852,-500.0,0.00013698,2]
[351805256,1738793442862,-500.0,0.00013698,2]
[351805257,1738793442871,-500.0,0.00013698,2]
[351805258,1738793442881,-500.0,0.00013698,2]
[351805259,1738793442891,-500.0,0.00013698,2]
[351805260,1738793442901,-500.0,0.00013698,2]
[351805261,1738793442911,-500.0,0.00013698,2]
[351805267,1738793443115,-1551.03,0.00013698,2]
[351805268,1738793443125,-500.0,0.00013698,2]
[351805269,1738793443135,-500.0,0.00013698,2]
[351805270,1738793443144,-500.0,0.00013698,2]
[351805271,1738793443154,-562.55,0.00013698,2]
[351805272,1738793443163,-501.62133054,0.00013698,2]
[351805273,1738793443173,-576.2,0.00013698,2]
[351805274,1738793443184,-500.0,0.00013698,2]
[351805275,1738793443194,-500.0,0.00013698,2]
[351805276,1738793443203,-881.14,0.00013698,2]
[351805277,1738793443213,-500.0,0.00013698,2]
[351805278,1738793443224,-500.0,0.00013698,2]
[351805279,1738793443235,-500.0,0.00013698,2]
[351805280,1738793443245,-500.0,0.00013698,2]
[351805281,1738793443254,-500.0,0.00013698,2]
[351805282,1738793443264,-500.0,0.00013698,2]
[351805283,1738793443274,-500.0,0.00013698,2]
[351805284,1738793443287,-656.82,0.00013698,2]
[351805285,1738793443296,-516.29,0.00013698,2]
[351805286,1738793443307,-500.0,0.00013698,2]
[351805287,1738793443316,-1837.52,0.00013698,2]
[351805288,1738793443326,-376.83327941,0.00013698,2]
[351805289,1738793443336,-542.47,0.00013698,2]
[351805290,1738793443345,-500.0,0.00013698,2]
[351805291,1738793443355,-799.94,0.00013698,2]
[351805292,1738793443364,-775.41,0.00013698,2]
[351805293,1738793443374,-1013.48,0.00013698,2]
[351805294,1738793443384,-1013.48,0.00013698,2]
[351805295,1738793443393,-1013.48,0.00013698,2]
[351805296,1738793443403,-1013.48,0.00013698,2]
[351805297,1738793443413,-1013.48,0.00013698,2]
[351805298,1738793443426,-1013.48,0.00013698,2]
[351805299,1738793443437,-1013.48,0.00013698,2]
[351805300,1738793443447,-694.75,0.00013698,2]
[351805301,1738793443459,-1013.48,0.00013698,2]
[351805302,1738793443469,-500.0,0.00013698,2]
[351805303,1738793443479,-1013.48,0.00013698,2]
[351805304,1738793443489,-1013.48,0.00013698,2]
[351805305,1738793443499,-1013.48,0.00013698,2]
[351805306,1738793443510,-1013.48,0.00013698,2]
[351805307,1738793443520,-1013.48,0.00013698,2]
[351805308,1738793443529,-1013.48,0.00013698,2]
[351805309,1738793443539,-1013.48,0.00013698,2]
[351805310,1738793443549,-1013.48,0.00013698,2]
[351805311,1738793443559,-1013.48,0.00013698,2]
[351805312,1738793443569,-500.0,0.00013698,2]
[351805313,1738793443579,-1013.48,0.00013698,2]
[351805314,1738793443589,-1013.48,0.00013698,2]
[351805315,1738793443602,-757.22,0.00013698,2]
[351805316,1738793443611,-1013.48,0.00013698,2]
[351805317,1738793443621,-1013.48,0.00013698,2]
[351805318,1738793443630,-1013.48,0.00013698,2]
[351805319,1738793443640,-1013.48,0.00013698,2]
[351805320,1738793443653,-1013.49609466,0.00013698,2]
[351805321,1738793443670,-500.0,0.00013698,2]
[351805322,1738793443681,-501.03179903,0.00013698,2]
[351805323,1738793443691,-416.8617299,0.00013698,2]
[351805324,1738793443701,-968.42,0.00013698,2]
[351805325,1738793443711,-503.39676494,0.00013698,2]
[351805326,1738793443720,-500.0,0.00013698,2]
[351805327,1738793443730,-500.0,0.00013698,2]
[351805328,1738793443740,-500.0,0.00013698,2]
[351805329,1738793443750,-527.51972186,0.00013698,2]
[351805330,1738793443760,-1039.74,0.00013698,2]
[351805331,1738793443771,-500.0,0.00013698,2]
[351805332,1738793443780,-500.0,0.00013698,2]
[351805333,1738793443790,-240.45032722,0.00013698,2]
[351805334,1738793443799,-500.0,0.00013698,2]
[351805335,1738793443809,-2302.37,0.00013698,2]
[351805336,1738793443820,-501.21233733,0.00013698,2]
[351805337,1738793443830,-500.0,0.00013698,2]
[351805338,1738793443840,-500.0,0.00013698,2]
[351805339,1738793443850,-4169.35,0.00013698,2]
[351805340,1738793443860,-245.76803523,0.00013698,2]
[351805341,1738793443870,-501.73835056,0.00013698,2]
[351805342,1738793443886,-500.0,0.00013698,2]
[351805343,1738793443897,-500.0,0.00013698,2]
[351805344,1738793443906,-500.0,0.00013698,2]
[351805345,1738793443916,-500.0,0.00013698,2]
[351805346,1738793443926,-657.71,0.00013698,2]
[351805347,1738793443938,-502.25217399,0.00013698,2]
[351805348,1738793443948,-500.0,0.00013698,2]
[351805349,1738793443958,-840.02,0.00013698,2]
[351805350,1738793443968,-500.0,0.00013698,2]
[351805351,1738793443978,-500.0,0.00013698,2]
[351805352,1738793443988,-500.0,0.00013698,2]
[351805353,1738793443998,-1828.88,0.00013698,2]
[351805354,1738793444008,-500.0,0.00013698,2]
[351805355,1738793444018,-1008.97,0.00013698,2]
[351805356,1738793444028,-500.0,0.00013698,2]
[351805357,1738793444039,-500.0,0.00013698,2]
[351805358,1738793444050,-500.0,0.00013698,2]
[351805359,1738793444061,-284.45020118,0.00013698,2]
[351805360,1738793444072,-500.0,0.00013698,2]
[351805361,1738793444082,-500.0,0.00013698,2]
[351805362,1738793444093,-500.0,0.00013698,2]
[351805363,1738793444103,-500.0,0.00013698,2]
[351805364,1738793444113,-245.32714664,0.00013698,2]
[351805365,1738793444123,-500.0,0.00013698,2]
[351805366,1738793444134,-504.92620391,0.00013698,2]
[351805367,1738793444153,-500.0,0.00013698,2]
[351805368,1738793444163,-546.82,0.00013698,2]
[351805369,1738793444174,-500.0,0.00013698,2]
[351805370,1738793444184,-500.0,0.00013698,2]
[351805371,1738793444195,-502.7288556,0.00013698,2]
[351805372,1738793444205,-501.69821228,0.00013698,2]
[351805373,1738793444215,-500.0,0.00013698,2]
[351805374,1738793444225,-500.0,0.00013698,2]
[351805375,1738793444235,-570.00038302,0.00013698,2]
[351805376,1738793444245,-1521.57,0.00013698,2]
[351805377,1738793444255,-259.35547869,0.00013698,2]
[351805378,1738793444265,-500.0,0.00013698,2]
[351805379,1738793444275,-654.21,0.00013698,2]
[351805380,1738793444285,-500.0,0.00013698,2]
[351805381,1738793444295,-500.0,0.00013698,2]
[351805382,1738793444305,-500.0,0.00013698,2]
[351805383,1738793444315,-500.88409937,0.00013698,2]
[351805384,1738793444325,-504.63537477,0.00013698,2]
[351805385,1738793444335,-1243.12,0.00013698,2]
[351805386,1738793444346,-972.14,0.00013698,2]
[351805387,1738793444356,-509.98,0.00013698,2]
[351805388,1738793444366,-587.3,0.00013698,2]
[351805389,1738793444377,-500.0,0.00013698,2]
[351805390,1738793444387,-500.0,0.00013698,2]
[351805391,1738793444397,-500.0,0.00013698,2]
[351805392,1738793444408,-500.0,0.00013698,2]
[351805393,1738793444418,-500.0,0.00013698,2]
[351805394,1738793444429,-500.0,0.00013698,2]
[351805395,1738793444441,-504.90464483,0.00013698,2]
[351805396,1738793444452,-500.0,0.00013698,2]
[351805397,1738793444462,-526.9,0.00013698,2]
[351805398,1738793444472,-500.0,0.00013698,2]
[351805399,1738793444482,-724.56,0.00013698,2]
[351805400,1738793444494,-725.05,0.00013698,2]
[351805401,1738793444503,-468.921,0.00013698,2]
[351805402,1738793444513,-500.0,0.00013698,2]
[351805403,1738793444524,-500.0,0.00013698,2]
[351805404,1738793444534,-500.0,0.00013698,2]
[351805405,1738793444543,-500.0,0.00013698,2]
[351805406,1738793444553,-532.78,0.00013698,2]
[351805407,1738793444562,-500.0,0.00013698,2]
[351805408,1738793444572,-500.0,0.00013698,2]
[351805409,1738793444583,-500.0,0.00013698,2]
[351805410,1738793444593,-500.0,0.00013698,2]
[351805411,1738793444603,-946.8,0.00013698,2]
[351805412,1738793444613,-500.0,0.00013698,2]
[351805413,1738793444624,-500.0,0.00013698,2]
[351805414,1738793444634,-500.0,0.00013698,2]
[351805415,1738793444644,-500.0,0.00013698,2]
[351805416,1738793444655,-500.0,0.00013698,2]
[351805417,1738793444665,-11661.43,0.00013698,2]
[351805418,1738793444675,-614.97094932,0.00013698,2]
[351805419,1738793444686,-504.66,0.00013698,2]
[351805420,1738793444697,-500.0,0.00013698,2]
[351805421,1738793444707,-500.0,0.00013698,2]
[351805422,1738793444716,-705.6,0.00013698,2]
[351805423,1738793444726,-787.92,0.00013698,2]
[351805424,1738793444737,-500.0,0.00013698,2]
[351805425,1738793444746,-500.0,0.00013698,2]
[351805426,1738793444756,-500.0,0.00013698,2]
[351805427,1738793444766,-500.0,0.00013698,2]
[351805428,1738793444776,-2172.34,0.00013698,2]
[351805429,1738793444785,-500.0,0.00013698,2]
[351805430,1738793444795,-500.0,0.00013698,2]
[351805431,1738793444805,-2918.62,0.00013698,2]
[351805432,1738793444814,-2769.15,0.00013698,2]
[351805433,1738793444823,-5955.25,0.00013698,2]
[351805434,1738793444834,-500.0,0.00013698,2]
[351805435,1738793444844,-1064.23,0.00013698,2]
[351805436,1738793444854,-535.69569744,0.00013698,2]
[351805437,1738793444864,-20.77504308,0.00013698,2]
[351805438,1738793445156,-2243.97495692,0.00013698,2]
[351805439,1738793445167,-500.0,0.00013698,2]
[351805440,1738793445176,-500.0,0.00013698,2]
[351805441,1738793445186,-24.08926877,0.00013698,2]
[351805442,1738793445198,-475.91073123,0.00013698,2]
[351805443,1738793445208,-5198.16,0.00013698,2]
[351805444,1738793445218,-500.0,0.00013698,2]
[351805445,1738793445227,-500.0,0.00013698,2]
[351805446,1738793445237,-500.0,0.00013698,2]
[351805447,1738793445246,-278.09624328,0.00013698,2]
[351805448,1738793445255,-500.0,0.00013698,2]
[351805449,1738793445265,-162.21131219,0.00013698,2]
[351805450,1738793445275,-642.7,0.00013698,2]
[351805451,1738793445285,-500.0,0.00013698,2]
[351805452,1738793445295,-500.0,0.00013698,2]
[351805453,1738793445304,-500.0,0.00013698,2]
[351805454,1738793445314,-500.0,0.00013698,2]
[351805455,1738793445323,-1019.38,0.00013698,2]
[351805456,1738793445333,-2632.04,0.00013698,2]
[351805457,1738793445343,-1044.57,0.00013698,2]
[351805458,1738793445353,-874.05,0.00013698,2]
[351805459,1738793445362,-500.0,0.00013698,2]
[351805460,1738793445372,-501.98540406,0.00013698,2]
[351805461,1738793445381,-500.0,0.00013698,2]
[351805462,1738793445392,-500.0,0.00013698,2]
[351805463,1738793445401,-500.8528102,0.00013698,2]
[351805464,1738793445417,-2369.25,0.00013698,2]
[351805465,1738793445427,-500.0,0.00013698,2]
[351805466,1738793445437,-500.0,0.00013698,2]
[351805467,1738793445446,-500.95828207,0.00013698,2]
[351805468,1738793445457,-500.0,0.00013698,2]
[351805469,1738793445467,-500.0,0.00013698,2]
[351805470,1738793445477,-500.0,0.00013698,2]
[351805471,1738793445487,-500.0,0.00013698,2]
[351805472,1738793445497,-1576.04,0.00013698,2]
[351805473,1738793445507,-500.0,0.00013698,2]
[351805475,1738793445517,-509.66229662,0.00013698,2]
[351805476,1738793445526,-500.0,0.00013698,2]
[351805477,1738793445535,-500.0,0.00013698,2]
[351805478,1738793445545,-1110.19,0.00013698,2]
[351805479,1738793445555,-553.21,0.00013698,2]
[351805480,1738793445565,-500.0,0.00013698,2]
[351805481,1738793445574,-2272.19421858,0.00013698,2]
[351805483,1738793445922,-76.84578142,0.00013698,2]
[351805484,1738793445932,-820.95,0.00013698,2]
[351805485,1738793445943,-232.44990168,0.00013698,2]
[351805486,1738793445952,-500.0,0.00013698,2]
[351805487,1738793445963,-500.0,0.00013698,2]
[351805488,1738793445972,-572.01539065,0.00013698,2]
[351805489,1738793445983,-224.3952232,0.00013698,2]
[351805490,1738793445992,-632.03144807,0.00013698,2]
[351805494,1738793446340,-700.0,0.00013698,2]